[Event "*** SCC Grand Prix: Titled Tuesday Blitz"]
[Site "Chess.com"]
[Date "2020.06.02"]
[Round "10"]
[White "Unknown_IM"]
[Black "Roza_Idrisova"]
[Result "0-1"]
[WhiteElo "2462"]
[BlackElo "2187"]
[TimeControl "180+1"]
[EndTime "11:58:27 PDT"]
[Termination "Roza_Idrisova won by resignation"]

1. c4 {[%clk 0:03:00.9]} 1... c6 {[%clk 0:02:59.6]} 2. d4 {[%clk 0:02:58.8]}
2... d5 {[%clk 0:02:59.5]} 3. Nf3 {[%clk 0:02:58.4]} 3... Nf6 {[%clk 0:02:59]}
4. Nc3 {[%clk 0:02:58.4]} 4... a6 {[%clk 0:02:59.3]} 5. c5 {[%clk 0:02:57.1]}
5... Bf5 {[%clk 0:02:56.3]} 6. Bf4 {[%clk 0:02:51.8]} 6... Nbd7 {[%clk 0:02:56]}
7. e3 {[%clk 0:02:52]} 7... h6 {[%clk 0:02:56.1]} 8. Qb3 {[%clk 0:02:51.7]} 8...
Qc8 {[%clk 0:02:52.8]} 9. Be2 {[%clk 0:02:50.9]} 9... g5 {[%clk 0:02:51.9]} 10.
Bg3 {[%clk 0:02:50.4]} 10... Bg7 {[%clk 0:02:52.1]} 11. O-O {[%clk 0:02:49.9]}
11... O-O {[%clk 0:02:51.9]} 12. a3 {[%clk 0:02:48.5]} 12... Re8 {[%clk
0:02:51.6]} 13. Qd1 {[%clk 0:02:48.2]} 13... Ne4 {[%clk 0:02:48.4]} 14. Nxe4
{[%clk 0:02:47.2]} 14... Bxe4 {[%clk 0:02:46.6]} 15. Nd2 {[%clk 0:02:43.3]}
15... Bg6 {[%clk 0:02:45.7]} 16. Bg4 {[%clk 0:02:27.6]} 16... Qd8 {[%clk
0:02:36.8]} 17. Qb3 {[%clk 0:02:24.7]} 17... f5 {[%clk 0:02:30]} 18. Be2 {[%clk
0:02:21.6]} 18... Qc8 {[%clk 0:02:28.9]} 19. h3 {[%clk 0:02:19.2]} 19... e5
{[%clk 0:02:28.3]} 20. Rfe1 {[%clk 0:02:18.5]} 20... exd4 {[%clk 0:02:22.2]} 21.
exd4 {[%clk 0:02:17.1]} 21... Bxd4 {[%clk 0:02:21.8]} 22. Rac1 {[%clk
0:02:09.4]} 22... Nxc5 {[%clk 0:02:15.9]} 23. Qb4 {[%clk 0:02:06.1]} 23... Ne6
{[%clk 0:02:05]} 24. Bf3 {[%clk 0:02:00.3]} 24... Bg7 {[%clk 0:01:55]} 25. Bxd5
{[%clk 0:01:58.4]} 25... f4 {[%clk 0:01:48.8]} 26. Bh2 {[%clk 0:01:57]} 26...
Qd7 {[%clk 0:01:47.6]} 27. Bxe6+ {[%clk 0:01:49.3]} 27... Rxe6 {[%clk
0:01:46.2]} 28. Rxe6 {[%clk 0:01:50.2]} 28... Qxe6 {[%clk 0:01:44]} 29. Qxb7
{[%clk 0:01:51.1]} 29... Rd8 {[%clk 0:01:41.2]} 30. Nf3 {[%clk 0:01:20.2]} 30...
Be4 {[%clk 0:01:35.4]} 31. Re1 {[%clk 0:01:16.9]} 31... Qd5 {[%clk 0:01:31.6]}
32. Qxa6 {[%clk 0:01:13.3]} 32... Bxf3 {[%clk 0:01:25.2]} 33. gxf3 {[%clk
0:01:11]} 33... Qxf3 {[%clk 0:01:22.9]} 34. Qe2 {[%clk 0:01:08.4]} 34... Qxe2
{[%clk 0:01:18.6]} 35. Rxe2 {[%clk 0:01:08]} 35... Rd1+ {[%clk 0:01:17]} 36. Kg2
{[%clk 0:01:07.4]} 36... Rb1 {[%clk 0:01:15.5]} 37. f3 {[%clk 0:00:57.9]} 37...
Bxb2 {[%clk 0:01:08.2]} 38. a4 {[%clk 0:00:55.6]} 38... Bd4 {[%clk 0:01:06.4]}
39. Rd2 {[%clk 0:00:53.1]} 39... c5 {[%clk 0:01:06]} 40. h4 {[%clk 0:00:48.5]}
40... Ra1 {[%clk 0:01:04.4]} 41. hxg5 {[%clk 0:00:47]} 41... hxg5 {[%clk
0:01:04]} 42. Kh3 {[%clk 0:00:47.9]} 42... Kf7 {[%clk 0:01:02.7]} 43. Kg4 {[%clk
0:00:47.9]} 43... Kg6 {[%clk 0:01:02.8]} 44. Re2 {[%clk 0:00:46.9]} 44... Rxa4
{[%clk 0:01:00.8]} 45. Re6+ {[%clk 0:00:46.3]} 45... Bf6 {[%clk 0:00:58]} 46.
Bg1 {[%clk 0:00:44.6]} 46... Rc4 {[%clk 0:00:54.8]} 47. Rc6 {[%clk 0:00:43.1]}
47... Rc2 {[%clk 0:00:49.6]} 48. Bxc5 {[%clk 0:00:38.9]} 48... Rg2+ {[%clk
0:00:48]} 49. Kh3 {[%clk 0:00:37.6]} 49... Rg3+ {[%clk 0:00:47.8]} 50. Kh2
{[%clk 0:00:36.4]} 50... Kf5 {[%clk 0:00:46.8]} 51. Bf2 {[%clk 0:00:28.1]} 51...
Rxf3 {[%clk 0:00:46.1]} 52. Kg2 {[%clk 0:00:29]} 52... Rd3 {[%clk 0:00:45.5]}
53. Rc5+ {[%clk 0:00:26.5]} 53... Kg4 {[%clk 0:00:44.9]} 54. Rc6 {[%clk
0:00:24.6]} 54... Bb2 {[%clk 0:00:44]} 55. Rb6 {[%clk 0:00:24.1]} 55... Rd2
{[%clk 0:00:43.6]} 56. Kf1 {[%clk 0:00:21.3]} 56... Rxf2+ {[%clk 0:00:43]} 57.
Kxf2 {[%clk 0:00:20.1]} 0-1

[Event "*** SCC Grand Prix: Titled Tuesday Blitz"]
[Site "Chess.com"]
[Date "2020.06.02"]
[Round "10"]
[White "Gandrade2"]
[Black "Zmof"]
[Result "0-1"]
[WhiteElo "2012"]
[BlackElo "2215"]
[TimeControl "180+1"]
[EndTime "11:58:27 PDT"]
[Termination "Zmof won on time"]

1. d4 {[%clk 0:03:00.9]} 1... Nf6 {[%clk 0:02:59]} 2. c4 {[%clk 0:03:00.7]} 2...
e6 {[%clk 0:02:58.7]} 3. Nc3 {[%clk 0:03:00.9]} 3... Bb4 {[%clk 0:02:59.3]} 4.
f3 {[%clk 0:03:00.7]} 4... c5 {[%clk 0:02:58.3]} 5. a3 {[%clk 0:02:53.7]} 5...
cxd4 {[%clk 0:02:56.4]} 6. axb4 {[%clk 0:02:53.8]} 6... dxc3 {[%clk 0:02:56.6]}
7. bxc3 {[%clk 0:02:54.7]} 7... d5 {[%clk 0:02:55.1]} 8. e3 {[%clk 0:02:52.6]}
8... Kf8 {[%clk 0:02:54.8]} 9. Nh3 {[%clk 0:02:42.5]} 9... Nc6 {[%clk
0:02:52.4]} 10. Be2 {[%clk 0:02:37.8]} 10... e5 {[%clk 0:02:47]} 11. Nf2 {[%clk
0:02:35.4]} 11... Be6 {[%clk 0:02:44.6]} 12. c5 {[%clk 0:02:30.9]} 12... h5
{[%clk 0:02:38]} 13. Nd3 {[%clk 0:01:57.3]} 13... Qc7 {[%clk 0:02:31.2]} 14. Kf2
{[%clk 0:01:51.8]} 14... h4 {[%clk 0:02:30.9]} 15. Bb2 {[%clk 0:01:49]} 15... e4
{[%clk 0:02:03]} 16. Nf4 {[%clk 0:01:46.2]} 16... Ne5 {[%clk 0:01:55.2]} 17. Qc2
{[%clk 0:01:14.2]} 17... h3 {[%clk 0:01:47.9]} 18. g3 {[%clk 0:01:01.1]} 18...
exf3 {[%clk 0:01:45.3]} 19. Bxf3 {[%clk 0:01:01.3]} 19... Nfg4+ {[%clk
0:01:39.5]} 20. Ke2 {[%clk 0:00:46.8]} 20... Nxf3 {[%clk 0:01:36.7]} 21. Kxf3
{[%clk 0:00:47]} 21... Ne5+ {[%clk 0:01:35.9]} 22. Kf2 {[%clk 0:00:44.2]} 22...
Nc4 {[%clk 0:01:28.6]} 23. Rhe1 {[%clk 0:00:35.7]} 23... Rh6 {[%clk 0:01:15.4]}
24. Kg1 {[%clk 0:00:31.3]} 24... a6 {[%clk 0:01:13.8]} 25. e4 {[%clk 0:00:26]}
25... Ne5 {[%clk 0:00:35.9]} 26. Re2 {[%clk 0:00:12.2]} 26... Re8 {[%clk
0:00:30]} 27. exd5 {[%clk 0:00:10.5]} 27... Bxd5 {[%clk 0:00:30.2]} 28. Nxd5
{[%clk 0:00:10]} 28... Nf3+ {[%clk 0:00:30.7]} 29. Kf2 {[%clk 0:00:09.6]} 29...
Qc6 {[%clk 0:00:27.5]} 30. Rxe8+ {[%clk 0:00:08.4]} 30... Kxe8 {[%clk
0:00:27.2]} 31. Qe2+ {[%clk 0:00:08]} 31... Re6 {[%clk 0:00:26.4]} 32. Qxf3
{[%clk 0:00:08.1]} 32... Re5 {[%clk 0:00:24.3]} 33. Rd1 {[%clk 0:00:07.3]} 33...
g6 {[%clk 0:00:22.4]} 34. Kg1 {[%clk 0:00:07.3]} 34... Rf5 {[%clk 0:00:22]} 35.
Qe3+ {[%clk 0:00:06.4]} 35... Kf8 {[%clk 0:00:22.3]} 36. Qe7+ {[%clk 0:00:05.5]}
36... Kg8 {[%clk 0:00:21.1]} 37. Qd8+ {[%clk 0:00:02.6]} 37... Kh7 {[%clk
0:00:20.5]} 38. Qh4+ {[%clk 0:00:02.9]} 38... Rh5 {[%clk 0:00:20.2]} 39. Qf4
{[%clk 0:00:02.4]} 39... Rf5 {[%clk 0:00:19.3]} 0-1

[Event "*** SCC Grand Prix: Titled Tuesday Blitz"]
[Site "Chess.com"]
[Date "2020.06.02"]
[Round "10"]
[White "Abund"]
[Black "kuba2006"]
[Result "1-0"]
[WhiteElo "2589"]
[BlackElo "2409"]
[TimeControl "180+1"]
[EndTime "11:58:29 PDT"]
[Termination "Abund won on time"]

1. d4 {[%clk 0:03:00.9]} 1... Nf6 {[%clk 0:03:00.9]} 2. c4 {[%clk 0:02:57.3]}
2... d6 {[%clk 0:03:01.5]} 3. Nc3 {[%clk 0:02:56.8]} 3... Nbd7 {[%clk
0:03:01.8]} 4. e4 {[%clk 0:02:56.5]} 4... e5 {[%clk 0:03:01.7]} 5. Nf3 {[%clk
0:02:55]} 5... g6 {[%clk 0:03:01.3]} 6. Be2 {[%clk 0:02:49.8]} 6... Bg7 {[%clk
0:03:01.3]} 7. O-O {[%clk 0:02:50.1]} 7... O-O {[%clk 0:03:00.8]} 8. Qc2 {[%clk
0:02:50.5]} 8... c6 {[%clk 0:02:57.2]} 9. d5 {[%clk 0:02:48.5]} 9... c5 {[%clk
0:02:49.6]} 10. a3 {[%clk 0:02:48.2]} 10... Ne8 {[%clk 0:02:34]} 11. b4 {[%clk
0:02:45.7]} 11... b6 {[%clk 0:02:33.6]} 12. Rb1 {[%clk 0:02:40.8]} 12... f5
{[%clk 0:02:30.3]} 13. Ng5 {[%clk 0:02:39.4]} 13... Ndf6 {[%clk 0:02:19]} 14. f4
{[%clk 0:02:20.8]} 14... h6 {[%clk 0:01:44.8]} 15. Ne6 {[%clk 0:02:05.3]} 15...
Bxe6 {[%clk 0:01:43.1]} 16. dxe6 {[%clk 0:02:05.6]} 16... fxe4 {[%clk
0:01:30.1]} 17. Nxe4 {[%clk 0:01:43.3]} 17... Qe7 {[%clk 0:01:14.6]} 18. Bf3
{[%clk 0:01:24.1]} 18... Rd8 {[%clk 0:01:08.2]} 19. Nxf6+ {[%clk 0:01:09.6]}
19... Rxf6 {[%clk 0:01:03.6]} 20. Bd5 {[%clk 0:01:06]} 20... Nc7 {[%clk
0:00:57.4]} 21. Bb2 {[%clk 0:01:06]} 21... Nxe6 {[%clk 0:00:42.3]} 22. fxe5
{[%clk 0:01:05.4]} 22... dxe5 {[%clk 0:00:28.6]} 23. Rxf6 {[%clk 0:01:00.5]}
23... Qxf6 {[%clk 0:00:11.4]} 24. Rf1 {[%clk 0:01:00]} 24... Qe7 {[%clk
0:00:04.7]} 25. Qxg6 {[%clk 0:01:00]} 25... Rxd5 {[%clk 0:00:02.7]} 26. cxd5
{[%clk 0:01:00]} 26... Nf4 {[%clk 0:00:03]} 27. Qe4 {[%clk 0:00:37.4]} 27... Qd6
{[%clk 0:00:02.9]} 28. bxc5 {[%clk 0:00:28.5]} 28... Qxc5+ {[%clk 0:00:02.3]}
29. Kh1 {[%clk 0:00:28.9]} 29... Qxd5 {[%clk 0:00:02.7]} 30. Qxd5+ {[%clk
0:00:22.6]} 30... Nxd5 {[%clk 0:00:03.6]} 31. Rd1 {[%clk 0:00:23.1]} 31... Ne3
{[%clk 0:00:03.6]} 32. Rd7 {[%clk 0:00:21.7]} 32... Nc4 {[%clk 0:00:03.1]} 33.
Bc1 {[%clk 0:00:17.7]} 33... a5 {[%clk 0:00:02.8]} 34. a4 {[%clk 0:00:17.2]}
34... e4 {[%clk 0:00:02.6]} 35. Re7 {[%clk 0:00:16.2]} 35... e3 {[%clk
0:00:02.2]} 36. Bxe3 {[%clk 0:00:15.8]} 36... Bf6 {[%clk 0:00:02.6]} 37. Re4
{[%clk 0:00:15.1]} 1-0

[Event "*** SCC Grand Prix: Titled Tuesday Blitz"]
[Site "Chess.com"]
[Date "2020.06.02"]
[Round "10"]
[White "Sweafty"]
[Black "GMaka"]
[Result "1/2-1/2"]
[WhiteElo "2494"]
[BlackElo "2366"]
[TimeControl "180+1"]
[EndTime "11:58:30 PDT"]
[Termination "Game drawn by repetition"]

1. Nf3 {[%clk 0:01:18.4]} 1... c6 {[%clk 0:03:00.9]} 2. c4 {[%clk 0:01:16]} 2...
d6 {[%clk 0:03:00.7]} 3. d4 {[%clk 0:01:15.9]} 3... Nf6 {[%clk 0:03:01.6]} 4.
Nc3 {[%clk 0:01:16.2]} 4... g6 {[%clk 0:03:02.5]} 5. g3 {[%clk 0:01:16.8]} 5...
Bg7 {[%clk 0:03:03.4]} 6. Bg2 {[%clk 0:01:17.7]} 6... O-O {[%clk 0:03:04.3]} 7.
O-O {[%clk 0:01:18.6]} 7... Bf5 {[%clk 0:03:03.2]} 8. b3 {[%clk 0:01:18.9]} 8...
Ne4 {[%clk 0:03:03.1]} 9. Bb2 {[%clk 0:01:19.1]} 9... Nxc3 {[%clk 0:03:03.4]}
10. Bxc3 {[%clk 0:01:20]} 10... c5 {[%clk 0:03:04.3]} 11. Qd2 {[%clk 0:01:19.7]}
11... Nc6 {[%clk 0:03:04.4]} 12. d5 {[%clk 0:01:18.7]} 12... Ne5 {[%clk
0:02:54.1]} 13. Nxe5 {[%clk 0:01:18.1]} 13... dxe5 {[%clk 0:02:55]} 14. Rad1
{[%clk 0:01:10.9]} 14... Qd6 {[%clk 0:02:48.6]} 15. e4 {[%clk 0:01:10.9]} 15...
Bg4 {[%clk 0:02:47.8]} 16. f3 {[%clk 0:01:11.3]} 16... Bd7 {[%clk 0:02:48.3]}
17. f4 {[%clk 0:01:11.9]} 17... Bg4 {[%clk 0:02:38.2]} 18. Bf3 {[%clk
0:01:09.5]} 18... Bxf3 {[%clk 0:02:37.6]} 19. Rxf3 {[%clk 0:01:10.4]} 19... f5
{[%clk 0:02:19.2]} 20. exf5 {[%clk 0:00:58.9]} 20... Rxf5 {[%clk 0:01:45.9]} 21.
fxe5 {[%clk 0:00:52.9]} 21... Bxe5 {[%clk 0:01:44.3]} 22. Rxf5 {[%clk
0:00:51.7]} 22... Bxc3 {[%clk 0:01:37.2]} 23. Qxc3 {[%clk 0:00:50.2]} 23... gxf5
{[%clk 0:01:37.2]} 24. Re1 {[%clk 0:00:49.7]} 24... Rf8 {[%clk 0:01:31.1]} 25.
Re6 {[%clk 0:00:48.1]} 25... Qc7 {[%clk 0:01:27.7]} 26. Qe3 {[%clk 0:00:44]}
26... Rf7 {[%clk 0:01:27.1]} 27. Qg5+ {[%clk 0:00:40.3]} 27... Kf8 {[%clk
0:01:27.4]} 28. Qh6+ {[%clk 0:00:21]} 28... Kg8 {[%clk 0:01:18.2]} 29. Qf4
{[%clk 0:00:21.2]} 29... Qxf4 {[%clk 0:01:00.2]} 30. gxf4 {[%clk 0:00:22.1]}
30... Kf8 {[%clk 0:01:00.7]} 31. Re5 {[%clk 0:00:21.9]} 31... Ke8 {[%clk
0:00:42.2]} 32. Kf2 {[%clk 0:00:22.1]} 32... Kd7 {[%clk 0:00:42.5]} 33. Kf3
{[%clk 0:00:22.7]} 33... b6 {[%clk 0:00:42.3]} 34. Re6 {[%clk 0:00:22]} 34...
Rg7 {[%clk 0:00:41.8]} 35. Rh6 {[%clk 0:00:22]} 35... Rg1 {[%clk 0:00:39.1]} 36.
Rxh7 {[%clk 0:00:22]} 36... Rf1+ {[%clk 0:00:37.6]} 37. Kg3 {[%clk 0:00:22.1]}
37... Ra1 {[%clk 0:00:36.9]} 38. Kh4 {[%clk 0:00:22.1]} 38... Rxa2 {[%clk
0:00:37.2]} 39. Kg5 {[%clk 0:00:15.3]} 39... Rb2 {[%clk 0:00:37.4]} 40. Rh3
{[%clk 0:00:15.1]} 40... a5 {[%clk 0:00:29.6]} 41. Kxf5 {[%clk 0:00:14.7]} 41...
Rg2 {[%clk 0:00:21.3]} 42. Rh7 {[%clk 0:00:14.2]} 42... Rb2 {[%clk 0:00:20.6]}
43. Rh3 {[%clk 0:00:14.4]} 43... Rg2 {[%clk 0:00:20.3]} 44. Ke4 {[%clk
0:00:15.1]} 44... Re2+ {[%clk 0:00:19.4]} 45. Kf5 {[%clk 0:00:15.3]} 45... Rg2
{[%clk 0:00:19]} 1/2-1/2

[Event "*** SCC Grand Prix: Titled Tuesday Blitz"]
[Site "Chess.com"]
[Date "2020.06.02"]
[Round "10"]
[White "timedothwasteme"]
[Black "Stronger1799"]
[Result "0-1"]
[WhiteElo "2147"]
[BlackElo "2320"]
[TimeControl "180+1"]
[EndTime "11:58:30 PDT"]
[Termination "Stronger1799 won by resignation"]

1. e4 {[%clk 0:02:30]} 1... c5 {[%clk 0:02:55.1]} 2. Nf3 {[%clk 0:02:28]} 2...
e6 {[%clk 0:02:55.1]} 3. d4 {[%clk 0:02:28]} 3... cxd4 {[%clk 0:02:55.7]} 4.
Nxd4 {[%clk 0:02:28.6]} 4... Nf6 {[%clk 0:02:56.5]} 5. Nc3 {[%clk 0:02:28.5]}
5... d6 {[%clk 0:02:56.5]} 6. Be2 {[%clk 0:02:26.8]} 6... Be7 {[%clk 0:02:56.3]}
7. O-O {[%clk 0:02:27.4]} 7... O-O {[%clk 0:02:57.2]} 8. Be3 {[%clk 0:02:27.6]}
8... Nc6 {[%clk 0:02:57]} 9. f4 {[%clk 0:02:28.1]} 9... a6 {[%clk 0:02:56.5]}
10. a4 {[%clk 0:02:28.2]} 10... Re8 {[%clk 0:02:40.4]} 11. Kh1 {[%clk
0:02:27.4]} 11... Rb8 {[%clk 0:02:39.8]} 12. Nb3 {[%clk 0:02:26.9]} 12... b6
{[%clk 0:02:34.8]} 13. Bf3 {[%clk 0:02:25.9]} 13... Qc7 {[%clk 0:02:32.5]} 14.
g4 {[%clk 0:02:20]} 14... Na5 {[%clk 0:02:28]} 15. Nxa5 {[%clk 0:02:07.6]} 15...
bxa5 {[%clk 0:02:28.9]} 16. Rb1 {[%clk 0:02:08.1]} 16... Rb4 {[%clk 0:02:28.1]}
17. g5 {[%clk 0:02:05.1]} 17... Nd7 {[%clk 0:02:20.5]} 18. Bg2 {[%clk
0:02:04.8]} 18... Bb7 {[%clk 0:02:20.4]} 19. f5 {[%clk 0:01:41.5]} 19... exf5
{[%clk 0:02:08]} 20. Nd5 {[%clk 0:01:29.1]} 20... Bxd5 {[%clk 0:02:04.4]} 21.
Qxd5 {[%clk 0:01:29.3]} 21... Ne5 {[%clk 0:01:46.4]} 22. Rxf5 {[%clk 0:01:22.9]}
22... Qxc2 {[%clk 0:01:10.1]} 23. Rbf1 {[%clk 0:01:22.5]} 23... Rxb2 {[%clk
0:01:09.4]} 24. R5f2 {[%clk 0:01:17.8]} 24... Qb3 {[%clk 0:01:03.2]} 25. Rxb2
{[%clk 0:01:07.2]} 25... Qxb2 {[%clk 0:01:02.3]} 26. Bd4 {[%clk 0:01:07.6]}
26... Qd2 {[%clk 0:00:55.2]} 27. Rf2 {[%clk 0:00:24.5]} 27... Qd1+ {[%clk
0:00:33.4]} 28. Rf1 {[%clk 0:00:24]} 28... Qd3 {[%clk 0:00:34]} 29. Bxe5 {[%clk
0:00:15]} 29... Qxd5 {[%clk 0:00:33.6]} 30. exd5 {[%clk 0:00:15.9]} 30... dxe5
{[%clk 0:00:34.2]} 31. Rd1 {[%clk 0:00:13.5]} 31... Bxg5 {[%clk 0:00:29.8]} 32.
d6 {[%clk 0:00:13.3]} 32... Bd8 {[%clk 0:00:11.2]} 33. Bb7 {[%clk 0:00:09.8]}
33... f5 {[%clk 0:00:07.9]} 34. Bxa6 {[%clk 0:00:09.1]} 34... e4 {[%clk
0:00:06.3]} 35. Rd5 {[%clk 0:00:05.1]} 35... g6 {[%clk 0:00:05.9]} 36. Rxa5
{[%clk 0:00:04.2]} 36... Bxa5 {[%clk 0:00:05.2]} 0-1

[Event "*** SCC Grand Prix: Titled Tuesday Blitz"]
[Site "Chess.com"]
[Date "2020.06.02"]
[Round "10"]
[White "Chuchofrio1"]
[Black "elohunter1999"]
[Result "0-1"]
[WhiteElo "2291"]
[BlackElo "2510"]
[TimeControl "180+1"]
[EndTime "11:58:31 PDT"]
[Termination "elohunter1999 won on time"]

1. d4 {[%clk 0:03:00.9]} 1... Nf6 {[%clk 0:02:59.4]} 2. c4 {[%clk 0:03:00.6]}
2... e6 {[%clk 0:02:59.7]} 3. Nc3 {[%clk 0:03:00.7]} 3... Bb4 {[%clk 0:02:59.3]}
4. Qc2 {[%clk 0:03:00.6]} 4... O-O {[%clk 0:02:58.7]} 5. Nf3 {[%clk 0:02:58.9]}
5... c5 {[%clk 0:02:58.5]} 6. dxc5 {[%clk 0:02:57.4]} 6... Na6 {[%clk
0:02:58.6]} 7. g3 {[%clk 0:02:57.3]} 7... Nxc5 {[%clk 0:02:58.3]} 8. Bg2 {[%clk
0:02:57.4]} 8... b6 {[%clk 0:02:58.7]} 9. O-O {[%clk 0:02:55.7]} 9... Bb7 {[%clk
0:02:58.8]} 10. Nb5 {[%clk 0:02:53.7]} 10... Be4 {[%clk 0:02:58.9]} 11. Qd1
{[%clk 0:02:53.5]} 11... Nb7 {[%clk 0:02:59]} 12. a3 {[%clk 0:02:53.5]} 12...
Be7 {[%clk 0:02:57]} 13. Bf4 {[%clk 0:02:51.6]} 13... Rc8 {[%clk 0:02:36.4]} 14.
Nxa7 {[%clk 0:02:35]} 14... Rxc4 {[%clk 0:02:33.7]} 15. Nb5 {[%clk 0:01:54.7]}
15... d5 {[%clk 0:02:28.1]} 16. Nc3 {[%clk 0:01:40.7]} 16... Bxf3 {[%clk
0:02:10.3]} 17. Bxf3 {[%clk 0:01:37.2]} 17... Nc5 {[%clk 0:02:10.9]} 18. Rc1
{[%clk 0:01:25.8]} 18... Ncd7 {[%clk 0:01:53.5]} 19. b3 {[%clk 0:01:13.7]} 19...
Rc8 {[%clk 0:01:51.5]} 20. Nb5 {[%clk 0:01:10]} 20... Rxc1 {[%clk 0:01:46.6]}
21. Qxc1 {[%clk 0:01:07]} 21... e5 {[%clk 0:01:41.2]} 22. Bg5 {[%clk 0:00:59.5]}
22... h6 {[%clk 0:01:39.8]} 23. Bd2 {[%clk 0:00:56.1]} 23... Nc5 {[%clk
0:01:31.4]} 24. Qb2 {[%clk 0:00:51.6]} 24... Qd7 {[%clk 0:01:27.8]} 25. a4
{[%clk 0:00:49.3]} 25... d4 {[%clk 0:01:11]} 26. Bg2 {[%clk 0:00:42.7]} 26...
Rd8 {[%clk 0:01:07.1]} 27. Na3 {[%clk 0:00:33.9]} 27... Qe6 {[%clk 0:00:58.3]}
28. Nc4 {[%clk 0:00:28.1]} 28... Nxa4 {[%clk 0:00:58.4]} 29. bxa4 {[%clk
0:00:27.9]} 29... Qxc4 {[%clk 0:00:58.3]} 30. Qxb6 {[%clk 0:00:27.7]} 30... Qxa4
{[%clk 0:00:53.9]} 31. Rc1 {[%clk 0:00:15.4]} 31... Qa2 {[%clk 0:00:49.5]} 32.
Be1 {[%clk 0:00:13.9]} 32... Qxe2 {[%clk 0:00:46.8]} 33. Bf1 {[%clk 0:00:12]}
33... Qe4 {[%clk 0:00:44.6]} 34. Rc7 {[%clk 0:00:10]} 34... Qxe1 {[%clk
0:00:34]} 35. Rxe7 {[%clk 0:00:08.6]} 35... Rf8 {[%clk 0:00:13.9]} 36. Qd6
{[%clk 0:00:07.6]} 36... Ne4 {[%clk 0:00:12.5]} 0-1

[Event "*** SCC Grand Prix: Titled Tuesday Blitz"]
[Site "Chess.com"]
[Date "2020.06.02"]
[Round "10"]
[White "AniJak"]
[Black "ditkin25"]
[Result "1-0"]
[WhiteElo "2279"]
[BlackElo "2407"]
[TimeControl "180+1"]
[EndTime "11:58:31 PDT"]
[Termination "AniJak won on time"]

1. e4 {[%clk 0:03:00.9]} 1... c6 {[%clk 0:02:59.4]} 2. d4 {[%clk 0:02:59.8]}
2... d5 {[%clk 0:02:59.6]} 3. exd5 {[%clk 0:02:59.8]} 3... cxd5 {[%clk
0:02:59.9]} 4. Bd3 {[%clk 0:03:00]} 4... Nc6 {[%clk 0:03:00.3]} 5. c3 {[%clk
0:03:00]} 5... Qc7 {[%clk 0:03:00.9]} 6. Ne2 {[%clk 0:02:59]} 6... Bg4 {[%clk
0:03:00.6]} 7. Bf4 {[%clk 0:02:49.6]} 7... Qxf4 {[%clk 0:02:52.6]} 8. Nxf4
{[%clk 0:02:48.4]} 8... Bxd1 {[%clk 0:02:52.5]} 9. Kxd1 {[%clk 0:02:49.3]} 9...
e6 {[%clk 0:02:52.2]} 10. Nd2 {[%clk 0:02:47.2]} 10... Bd6 {[%clk 0:02:51.8]}
11. Nh5 {[%clk 0:02:45.2]} 11... g6 {[%clk 0:02:49.1]} 12. Ng3 {[%clk
0:02:44.5]} 12... h5 {[%clk 0:02:45.9]} 13. Re1 {[%clk 0:02:33.6]} 13... h4
{[%clk 0:02:38.2]} 14. Ngf1 {[%clk 0:02:33]} 14... h3 {[%clk 0:02:38.3]} 15. g3
{[%clk 0:02:32.2]} 15... Nh6 {[%clk 0:02:38.5]} 16. Ne3 {[%clk 0:02:29.8]} 16...
O-O-O {[%clk 0:02:30.8]} 17. Bf1 {[%clk 0:02:24.7]} 17... Kb8 {[%clk 0:02:12.6]}
18. Nf3 {[%clk 0:02:05.9]} 18... Nf5 {[%clk 0:01:23.8]} 19. Nxf5 {[%clk
0:02:04.9]} 19... gxf5 {[%clk 0:01:24]} 20. Ng5 {[%clk 0:02:03.6]} 20... Rdf8
{[%clk 0:01:17.7]} 21. Nxh3 {[%clk 0:02:03.2]} 21... f4 {[%clk 0:01:10.7]} 22.
gxf4 {[%clk 0:01:58]} 22... Ne7 {[%clk 0:01:10.6]} 23. Re3 {[%clk 0:01:39.1]}
23... Rh4 {[%clk 0:01:01.7]} 24. Rf3 {[%clk 0:01:35.6]} 24... Nf5 {[%clk
0:00:26.4]} 25. Kc2 {[%clk 0:01:31]} 25... Rfh8 {[%clk 0:00:25.7]} 26. Re1
{[%clk 0:01:28.1]} 26... Rg4 {[%clk 0:00:23.1]} 27. Ng5 {[%clk 0:01:22.5]} 27...
Rxh2 {[%clk 0:00:22.1]} 28. Nxf7 {[%clk 0:01:20.6]} 28... Nh4 {[%clk 0:00:20.4]}
29. Rfe3 {[%clk 0:01:09.3]} 29... Rxf2+ {[%clk 0:00:20.3]} 30. Be2 {[%clk
0:01:09.3]} 30... Bxf4 {[%clk 0:00:13.4]} 31. Rxe6 {[%clk 0:01:07.8]} 31... Nf3
{[%clk 0:00:13.8]} 32. Rf1 {[%clk 0:01:03.8]} 32... Rgg2 {[%clk 0:00:14]} 33.
Rxf2 {[%clk 0:00:57.5]} 33... Rxf2 {[%clk 0:00:14.9]} 34. Kd1 {[%clk 0:00:56.6]}
34... Ng5 {[%clk 0:00:09]} 35. Nxg5 {[%clk 0:00:54.9]} 35... Bxg5 {[%clk
0:00:09.9]} 36. Re5 {[%clk 0:00:53]} 36... Rg2 {[%clk 0:00:08]} 37. Rxd5 {[%clk
0:00:52.1]} 37... Kc7 {[%clk 0:00:08.2]} 38. Rc5+ {[%clk 0:00:49.9]} 38... Kb6
{[%clk 0:00:08.1]} 39. Re5 {[%clk 0:00:48.9]} 39... Bf4 {[%clk 0:00:07.7]} 40.
Re6+ {[%clk 0:00:48.6]} 40... Kc7 {[%clk 0:00:05]} 41. Re7+ {[%clk 0:00:48.4]}
41... Kb6 {[%clk 0:00:04.6]} 42. Rxb7+ {[%clk 0:00:47.8]} 42... Kxb7 {[%clk
0:00:03.1]} 43. Bf3+ {[%clk 0:00:47.9]} 43... Kc7 {[%clk 0:00:04]} 44. Bxg2
{[%clk 0:00:48.1]} 44... Kd6 {[%clk 0:00:04.9]} 45. Kc2 {[%clk 0:00:48.2]} 45...
Bh6 {[%clk 0:00:04.5]} 46. Kd3 {[%clk 0:00:48.2]} 46... Bf8 {[%clk 0:00:05.1]}
47. b3 {[%clk 0:00:48.1]} 47... a5 {[%clk 0:00:05.6]} 48. c4 {[%clk 0:00:46.7]}
48... Kc7 {[%clk 0:00:05.2]} 49. c5 {[%clk 0:00:46.4]} 49... Bh6 {[%clk
0:00:03]} 50. Kc4 {[%clk 0:00:46.1]} 50... Bd2 {[%clk 0:00:02.8]} 51. Kb5 {[%clk
0:00:45.3]} 51... Kd7 {[%clk 0:00:01.3]} 52. d5 {[%clk 0:00:45.4]} 1-0